Cogmind - Beta 15 @@@ ROGUE MODE // 2025.06.14 @ 18:42:53 Player: Mogwok Wargfriend Result: Destroyed by G-47 Trooper with Particle Gun Performance ------------- Evolutions (0) 0 Regions Visited (2) 400 Robots Destroyed (26) 130 Value Destroyed (482) 482 Prototype IDs (0) 0 Alien Tech Used (0) 0 Bonus (0) 0 TOTAL SCORE: 1012 Bonus ------- None Cogmind --------- Core Integrity 0/250 Matter 283/300 Energy 152/160 System Corruption 0% Temperature Warning (347) Movement Walking (120) Location -10/Mines Parts ------- > --- POWER (1) -------- Light Nuclear Core > --- PROPULSION (2) --- Aluminum Leg Aluminum Leg > --- UTILITY (2) ------ Improved Heat Sink Small Storage Unit > --- WEAPON (2) ------- Particle Gun Assault Rifle > --- INVENTORY (8) ---- Improved Ion Engine Aluminum Leg Aluminum Leg Targeting Computer ECM Suite Assault Rifle Mining Laser Peak State ------------ > --- POWER ------------ Light Nuclear Core > --- PROPULSION ------- Aluminum Leg Aluminum Leg > --- UTILITY ---------- Small Storage Unit Visual Processing Unit > --- WEAPON ----------- Particle Gun Assault Rifle > --- INVENTORY -------- Improved Ion Engine Aluminum Leg Aluminum Leg Improved Heat Sink Targeting Computer ECM Suite Assault Rifle Mining Laser [Rating: 12] Favorites ----------- Power Light Nuclear Core Engine Light Ion Engine Power Core Light Nuclear Core Propulsion Aluminum Leg Leg Aluminum Leg Utility Small Storage Unit Device Seismic Detector Storage Small Storage Unit Processor Visual Processing Unit Weapon Assault Rifle Energy Gun Particle Gun Ballistic Gun Assault Rifle Special Weapon Mining Laser Build | -11 -10 -10 ------- Run | Yrd Mat Min Slots Evolved . | . . . Power . | . . . Propulsion . | . . . Utility . | . . . Weapon . | . . . Parts Attached 16 | 7 8 1 Power 2 | 1 1 . Engine 1 | 1 . . Core 1 | . 1 . Reactor . | . . . Propulsion 5 | 2 3 . Treads . | . . . Leg 5 | 2 3 . Wheel . | . . . Hover . | . . . Flight . | . . . Utility 4 | 2 1 1 Device 2 | 1 . 1 Storage 1 | 1 . . Processor 1 | . 1 . Hackware . | . . . Protection . | . . . Artifact . | . . . Weapon 5 | 2 3 . Energy Gun 2 | 1 1 . Energy Cannon . | . . . Ballistic Gun 2 | 1 1 . Ballistic Cannon . | . . . Launcher . | . . . Special Weapon 1 | . 1 . Impact Weapon . | . . . Slashing Weapon . | . . . Piercing Weapon . | . . . Special Melee Weapon . | . . . Unidentified Prototypes . | . . . Parts Lost 1 | . 1 . Power . | . . . Propulsion . | . . . Utility 1 | . 1 . Weapon . | . . . Highest Loss Streak 1 | . 1 . To Critical Strikes . | . . . Average Backups 7 | 3 7 7 Power . | . 1 1 Propulsion 2 | 1 2 2 Utility 2 | . 2 2 Weapon 1 | . 1 2 Tool/Special . | . . . Unused Backups 11 | . 4 7 Power 2 | . 1 1 Propulsion 4 | . 2 2 Utility 3 | . . 3 Weapon 2 | . 1 1 Tool/Special . | . . . Average Slot Usage (%) 96 | . 96 100 Engine 2 | . 2 . Core 11 | . 10 14 Leg 28 | . 28 28 Device 4 | . 5 . Storage 14 | . 14 14 Processor 6 | . 5 14 Energy Gun 12 | . 12 13 Ballistic Gun 13 | . 12 14 Special Weapon 2 | . 2 . Peak Build Rating 12 | 7 11 12 Average Rating 9 | 5 9 11 On Entrance 6 | . 7 11 Naked Turns . | . . . Heaviest Build 15 | 12 15 15 Greatest Support 20 | 20 20 20 Greatest Overweight (x) 2 | 2 . . Average Overweight (x) . | . . . Largest Inventory Capacity 8 | 8 8 8 Average Capacity 7 | 7 8 8 Most Carried 8 | 4 8 8 Average Carried 7 | 3 7 7 Final Capacity 8 | 8 8 8 Final Carried 8 | 4 8 7 Class Distribution -------------------- 62% | Scavenger-Mutant 37% | Mutant Dominant Class ---------------- Scavenger-Mutant | -10/Materials Scavenger-Mutant | -10/Mines Resources | -11 -10 -10 ----------- Run | Yrd Mat Min Matter Collected 651 | 268 293 90 Remotely . | . . . Salvage Created 972 | 87 748 137 Parts 50 | 5 41 4 Haulers Intercepted 1 | . 1 . Recyclers Shooed 3 | . 3 . Parts Field Recycled . | . . . Retrieved Matter . | . . . Parts Self-Destructed . | . . . Prevented . | . . . Kills | -11 -10 -10 ------- Run | Yrd Mat Min Combat Hostiles Destroyed 14 | . 11 3 Guns 14 | . 11 3 Classes Destroyed 8 | 2 6 . Worker 2 | . 2 . Tunneler 2 | 1 1 . Hauler 1 | . 1 . Recycler 4 | 1 3 . Mechanic 1 | . 1 . Watcher 2 | . 2 . Swarmer 5 | . 5 . Grunt 9 | . 6 3 Best Kill Streak 10 | 2 10 2 Combat Bots Only 5 | . 5 2 Max Kills in Single Turn 1 | 1 1 1 Gunslinging . | . . . Exploded . | . . . Melee . | . . . Uniques/NPCs Destroyed . | . . . Combat | -11 -10 -10 -------- Run | Yrd Mat Min Hostile Shots Fired 112 | . 76 36 Missed 27 | . 19 8 Hits 85 | . 57 28 Projectile 85 | . 57 28 Critical Strikes 1 | . 1 . Damage Taken 918 | . 552 366 Core 262 | . 167 95 Absorbed by Shields . | . . . Regen/Repaired (Parts) 56 | . 56 . Core Remaining (%) 100 | 100 . . Volleys Fired 94 | 9 63 22 Largest 2 | 2 2 2 Hottest 100 | 60 100 85 Shots Fired 176 | 18 114 44 Gun 172 | 18 110 44 Cannon . | . . . Launcher . | . . . Special 4 | . 4 . Kinetic 90 | 9 59 22 Thermal 86 | 9 55 22 Explosive . | . . . Electromagnetic . | . . . Robot Hit Streak 11 | 4 11 7 Robot Miss Streak 3 | 2 3 2 Penetration Max . | . . . Secondary Targets 2 | . 1 1 Max Gunslinging Chain 1 | . 1 1 Shots Hit Robots 110 | 12 68 30 Core Hits 44 | 3 33 8 Critical Kills . | . . . Critical Parts Destroyed . | . . . Critical Strikes 2 | . 1 1 Burn 2 | . 1 1 Melee Attacks . | . . . Impact . | . . . Slashing . | . . . Piercing . | . . . Sneak Attacks . | . . . Combat Hostiles . | . . . Follow-up Attacks . | . . . Damage Inflicted 1418 | 136 858 424 Guns 1404 | 136 844 424 Cannons . | . . . Explosions . | . . . Melee . | . . . Ramming 14 | . 14 . Kinetic 680 | 80 411 189 Thermal 724 | 56 433 235 Explosive . | . . . Electromagnetic . | . . . Impact . | . . . Slashing . | . . . Piercing . | . . . Highest Corruption . | . . . Average Corruption . | . . . Corruption Purged . | . . . Corruption Blocked . | . . . Overload Shots . | . . . Overflow Damage . | . . . Projectiles . | . . . Explosions . | . . . Melee . | . . . Knockbacks . | . . . Impact . | . . . Kinetic . | . . . Secondary . | . . . Self-Inflicted Damage . | . . . Shots . | . . . Rammed . | . . . Targets Rammed 5 | . 5 . Kicked 5 | . 5 . Crushed . | . . . Highest Temperature 402 | . 108 402 Average Temperature 82 | . 31 190 Received Heat Transfer 411 | . 198 213 Effects 3 | . . 3 Shutdowns 2 | . . 2 Interference 1 | . . 1 Siege Activations . | . . . Martial Activations . | . . . Shielding Activations . | . . . Robots Disrupted . | . . . Combat Hostiles . | . . . Robots Corrupted . | . . . Combat Hostiles . | . . . Parts Fried . | . . . Impact Corruptions . | . . . Robots Melted . | . . . Combat Hostiles . | . . . Parts Melted 4 | . 3 1 Heat Transferred 1812 | 125 1058 629 Parts Sabotaged . | . . . Parts Stolen . | . . . Parts Stripped . | . . . Power Chain Reactions . | . . . Alert | -11 -10 -10 ------- Run | Yrd Mat Min Maximum Alert Level . | . . . Low Security (%) 100 | 100 100 100 Level 1 . | . . . Level 2 . | . . . Level 3 . | . . . Level 4 . | . . . Level 5 . | . . . High Security . | . . . Max Security . | . . . Peak Influence 177 | 10 177 40 Initial . | . . . Average 59 | . 69 19 Influence Increases 513 | 10 403 100 Destroy 0b10 Robot/C 280 | . 220 60 Destroy 0b10 Robot/NC 60 | 10 50 . Destroy Leader 76 | . 66 10 Successful Hack 29 | . 29 . Destroy Structure 8 | . 8 . Lose Combat Pursuer 60 | . 30 30 Influence Decreases 483 | 10 403 70 Time Decay 473 | 10 393 70 Lost Part 10 | . 10 . Squads Dispatched 2 | . 2 . Investigation 1 | . 1 . Extermination . | . . . Reinforcement 1 | . 1 . Assault . | . . . Garrison . | . . . Intercept . | . . . Searches Triggered . | . . . Construction Impeded . | . . . Haulers Reinforced . | . . . Active Scanning Responses . | . . . Cargo Convoy Interrupts . | . . . Stealth | -11 -10 -10 --------- Run | Yrd Mat Min Distress Signals 1 | . 1 . Communications Jammed . | . . . Distress Signals . | . . . Times Spotted 34 | . 28 6 Peak Tracking Total 7 | . 7 2 Tactical Retreats 2 | . 1 1 Traps | -11 -10 -10 ------- Run | Yrd Mat Min Traps Triggered . | . . . Indirectly . | . . . Trap Hack Attempts . | . . . Triggered . | . . . Disarmed . | . . . Reprogrammed . | . . . Reused . | . . . Traps Extracted . | . . . Installed . | . . . Triggered . | . . . Machines | -11 -10 -10 ---------- Run | Yrd Mat Min Machines Disabled . | . . . Max in Single Turn . | . . . Machines Repaired . | . . . Machines Dismantled . | . . . Machines Sabotaged . | . . . Overloaded Fab Kills . | . . . Hacking | -11 -10 -10 --------- Run | Yrd Mat Min Machines Accessed 7 | . 7 . Terminals 6 | . 6 . Fabricators . | . . . Repair Stations 1 | . 1 . Recycling Units . | . . . Scanalyzers . | . . . Garrison Access . | . . . Total Hacks 31 | . 31 . Successful 17 | . 17 . Failed 13 | . 13 . Catastrophic 1 | . 1 . Database Lockouts 1 | . 1 . Manual 19 | . 19 . Terminals 24 | . 24 . Fabricators . | . . . Repair Stations 7 | . 7 . Recycling Units . | . . . Scanalyzers . | . . . Garrison Access . | . . . Terminal Hacks 7 | . 7 . Record 1 | . 1 . Robot Analysis 1 | . 1 . Branch Access Points 1 | . 1 . Terminal Index 1 | . 1 . Locate Traps 3 | . 3 . Fabricator Hacks . | . . . Repair Station Hacks 6 | . 6 . Scan Component 3 | . 3 . Repair 3 | . 3 . Recycling Unit Hacks . | . . . Scanalyzer . | . . . Garrison Access Hacks . | . . . Unauthorized Hacks 4 | . 4 . Terminals 4 | . 4 . Botnet 3 | . 3 . Operators 1 | . 1 . Fabricators . | . . . Repair Stations . | . . . Recycling Units . | . . . Scanalyzers . | . . . Garrison Access . | . . . Data Cores Recovered . | . . . Used . | . . . Hacking Detections 7 | . 7 . Full Trace Events 1 | . 1 . Feedback Events . | . . . Feedback Blocked . | . . . Robot Schematics Acquired . | . . . Robots Built . | . . . Authchips . | . . . Time . | . . . Total Robot Build Rating . | . . . Part Schematics Acquired . | . . . Parts Built . | . . . Authchips . | . . . Time . | . . . Total Part Build Rating . | . . . Parts Repaired 3 | . 3 . Time 96 | . 96 . Parts Recycled . | . . . Recycled Matter . | . . . Retrieved Matter . | . . . Retrieved Components . | . . . Parts Scanalyzed . | . . . Part Schematics Acquired . | . . . Parts Damaged . | . . . Bothacking | -11 -10 -10 ------------ Run | Yrd Mat Min Used RIF Installer . | . . . Robots Hacked . | . . . Non-combat . | . . . Combat . | . . . Robot Hacks Applied . | . . . Relay Couplers Released . | . . . Fabnet Peak Effective % . | . . . Robots Rewired . | . . . Allies Hacked . | . . . Hacks Repelled . | . . . Allies | -11 -10 -10 -------- Run | Yrd Mat Min Total Allies . | . . . Largest Group . | . . . Highest-Rated Group . | . . . Highest-Rated Ally . | . . . Total Orders . | . . . Ally Attacks . | . . . Total Damage . | . . . Kills . | . . . Allies Corrupted . | . . . Allies Melted . | . . . Intel | -11 -10 -10 ------- Run | Yrd Mat Min Active Infowar (turns) 1231 | 23 1055 153 Optics 731 | . 578 153 Seismic 500 | 23 477 . Robot Analysis Total 1 | . 1 . Derelict Logs Recovered . | . . . Drone Launches . | . . . Drone Recoveries . | . . . Exploration | -11 -10 -10 ------------- Run | Yrd Mat Min Turns Passed 1628 | 113 1348 167 Spaces Moved 956 | 63 824 69 Core 17 | 17 . . Treads . | . . . Legs 939 | 46 824 69 Wheels . | . . . Hover . | . . . Flight . | . . . Fastest Speed 50 | 50 120 120 Average Speed 119 | 109 120 120 Slowest Speed 150 | 150 120 120 Overloaded Moves . | . . . Propulsion Burnouts . | . . . Robots Hopped . | . . . Potential Cave-ins . | . . . Cave-ins Triggered . | . . . Exploration Rate (%) 37 | 6 94 11 Regions Visited 2 Branch Regions 1 Pre-discovered Areas . | . . . Known Exits Taken 1 | . 1 . Unknown Exits Taken 1 | 1 . . Scrap Searched . | . . . Spaces Dug 2 | . 2 . Terrain Destroyed 4 | . 4 . Melee . | . . . Projectile 4 | . 4 . AOE . | . . . Terrain Rammed . | . . . Walls Destroyed . | . . . Machines Disabled . | . . . Actions | -11 -10 -10 --------- Run | Yrd Mat Min Total 1264 | 86 1067 111 Wait 158 | 4 139 15 Move 954 | 62 823 69 Hop . | . . . Pick Up 18 | 4 13 1 Fast Attach 8 | 7 1 . Attach 3 | . 2 1 Detach 1 | . . 1 Swap 10 | . 9 1 Drop 13 | . 12 1 Fire 94 | 9 63 22 Melee . | . . . Ram . | . . . Kick 5 | . 5 . Crush . | . . . Escape Stasis . | . . . Rewire . | . . . Trap . | . . . Miscellaneous . | . . . Route ------- -11/Scrapyard -10/Materials (discovered 5 exits: [*Mat x3] / *Min x2) -10/Mines History --------- Turn | Location | Event 17 | -11/Scrapyard | Discovered new exit (range 16) 114 | -11/Scrapyard | Entered Materials 240 | -10/Materials | Central database locked down 305 | -10/Materials | Build established: Mutant 431 | -10/Materials | Core integrity fell below 50% 470 | -10/Materials | Discovered new exit (range 12) 730 | -10/Materials | Identified exit to Mines 738 | -10/Materials | Discovered new exit (range 15) 923 | -10/Materials | Build established: Scavenger-Mutant 1010 | -10/Materials | Repaired Lgt. Nuclear Core 1043 | -10/Materials | Repaired Particle Gun 1074 | -10/Materials | Repaired Aluminum Leg 1175 | -10/Materials | Discovered new exit (range 15) 1462 | -10/Materials | Entered Mines 1600 | -10/Mines | Core integrity fell below 20% 1629 | -10/Mines | Destroyed by G-47 Trooper with Particle Gun Last Messages --------------- 01495_ Dropped Heat Sink. 01495_ Acquired Imp. Heat Sink. 01495_ Acquired 1 matter. 01568_ K-01 Serf collects debris. 01584_ G-47 Trooper suffers critical hit (Burn). 01611_ Heat Sink melted. 01611_ G-34 Mercenary destroyed. 01615_ Power failure, Lgt. Nuclear Core shutdown. 01615_ Overheating: System interference. 01615_ Visual Processing Unit temporarily disabled. 01615_ Acquired 33 matter. 01617_ Acquired 3 matter. 01620_ Acquired 2 matter. 01621_ R-06 Scavenger collects Aluminum Leg. 01622_ Discarded Visual Processing Unit. 01624_ Power failure, Lgt. Nuclear Core shutdown. 01627_ R-06 Scavenger collects Sml. Laser. Map ----- +----------------------------------------------------+ | ?????????????????????????????????????????????? | | ?????????????????????????????????????????????? | | ?????????????????????????????????????????????? | | ?????????????????????????????????????????????? | | ?????????????????????????????????????????????? | | ?????????????????????????????????????????????? | | ?????????????????????????????????????????????? | | ?????????????????????????????????????????????? | | ?????????????????????????????????????????????? | | ?????????????????????????????????????????????? | | ?????????????????????????????????????????????? | | ?????????????????????????????????????????????? | | ?????????????????????????????????????????????? | | ?????????????????????????????????????????????? | | ?????????????????????????????????????????????? | | ?????????????????????????????????????????????? | | ?????????????????????????????????????????????? | | ?????????????????????????????????????????????? | | ?????????????????????????????????????????????? | | ??????????????????????????????????????????? ? | | ???????????????????????????????????????## ? | | ????????????????????????????????????? | | ????????????????????????#####?????? | | ????????????????????##### ##??? | | ????????????????????#rgt ## ?? | | ????????????????????#@## #????????? | | ????????????????????# ### ####????????? | | ????????????????????# #?#### ##???????????? | | ????????????????????# #????## ##????????????? | | ????????????????????# #?????####?????????????? | | ????????????????????# #??????#########???????? | | ????????????????????# #??????# #???????? | | ????????????????????#r#??????# #???????? | | ????????????????????# #??????# #???????? | | ????????????????????# #??????# % #???????? | | ????????????????????# #??????# [ #???????? | | ????????????????????# ######?####!####???????? | | ????????????????????# #????# #??????????? | | ????????????????????###### #????# #??????????? | | ?????????????????????????# #????# #??????????? | | ?????????????????????????# #????# #??????????? | | ?????????????????????????# #????# #??????????? | | ?????????????????????##### ###### #??????????? | | ?????????????????????# #??????????? | | ?????????????????????# ###########??????????? | | ?????????????????????# ??????????????????????? | | ?????????????????????#???????????????????????? | | ?????????????????????????????????????????????? | | ?????????????????????????????????????????????? | | ?????????????????????????????????????????????? | +----------------------------------------------------+ Best States ------------- Heat Dissipation 25 Energy Generation 14 Energy Capacity 160 Matter Stores 300 Matter Capacity 300 Sight Range 18 Terrain Scan Density 10 Evasion (%) 55 Item Schematics ----------------- None Robot Schematics ------------------ None Fabricated ------------ Nothing Repaired ---------- Lgt. Nuclear Core | 66% | -10/Materials Particle Gun | 73% | -10/Materials Aluminum Leg | 78% | -10/Materials Alien Tech Used ----------------- None Achievements -------------- None Challenges ------------ None Game ------ Seed GunProtonExpander Manual? 0 Play Time 00:12:17 Cumulative 213.9 hours Start 2025.06.14 @ 13:04:11 End 2025.06.14 @ 18:42:53 Sessions 4 Manual Loads 0 Difficulty Rogue Special Mode None Game No. 203 Rogue 203 Adventurer 0 Explorer 0 Win Type - Total 1 Types 1/0/0/0/0/0/0/0/0/0 Lore% 52 Gallery% 59 Achievement% 47 Wizard Run 0 Options --------- Layout 2 ASCII 1 Keyboard 1 Movement Numpad Keybinds 0 Fullscreen 2 Font 32/TamsynBold Map View 50x44 Zoom Use 0% Tactical HUD 1 Map Filters NONE Filters NONE Steam 1 RUN: 7134b827-2b8b-42f7-aa9c-4d06e696eb73